bitfinex/quotes_SOLUSD_20250811
["timestamp","ask_amount","ask_price","bid_price","bid_amount"]
[1754923321190,0.03,179.69,179.67,0.68]
[1754923321420,0.03,179.69,179.66,9.49179054]
[1754923321580,0.03,179.69,179.68,9.49179054]
[1754923321784,0.03,179.71,179.68,43.86]
[1754923322012,0.03,179.71,179.69,44.54]
[1754923322305,0.03,179.71,179.68,0.68]
[1754923322607,0.03,179.71,179.69,43.94]
[1754923322804,0.03,179.71,179.68,0.68]
[1754923322982,0.03,179.71,179.69,44.62]
[1754923323185,0.48,179.75,179.69,43.94]
[1754923323384,14.27921953,179.72,179.69,43.94]
[1754923323585,140.0,179.71,179.69,43.94]
[1754923323883,5.56483027,179.7,179.67,26.68]
[1754923324090,19.8440498,179.7,179.68,43.88]
[1754923324290,5.56483027,179.7,179.68,43.88]
[1754923324493,140.0,179.71,179.69,0.68]
[1754923324709,140.0,179.71,179.7,0.68]
[1754923324928,140.0,179.71,179.68,44.56]
[1754923325208,145.56465209,179.71,179.68,44.56]
[1754923325511,145.56465209,179.71,179.68,43.88]
[1754923325689,140.0,179.71,179.69,0.68]
[1754923325892,5.5620446,179.79,179.71,5.56452061]
[1754923326093,9.27499967,179.79,179.75,14.27921953]
[1754923326416,5.59178299,179.8,179.75,14.27921953]
[1754923326585,19.87100252,179.8,179.75,14.27921953]
[1754923326909,5.59178299,179.8,179.75,14.27921953]
[1754923327098,19.87100252,179.8,179.75,14.27921953]
[1754923327299,6.07178299,179.8,179.72,44.5]
[1754923327489,14.27921953,179.79,179.72,44.5]
[1754923328101,5.56235398,179.78,179.74,14.27921953]
[1754923328299,6.04235398,179.78,179.68,41.10621557]
[1754923328501,14.27921953,179.73,179.69,44.48]
[1754923328712,14.27921953,179.72,179.69,26.68]
[1754923328900,140.0,179.71,179.69,70.48]
[1754923329108,154.27921953,179.71,179.69,43.8]
[1754923329292,14.27921953,179.7,179.67,43.8]
[1754923329488,154.27921953,179.71,179.68,0.68]
[1754923329801,14.27921953,179.69,179.67,43.8]
[1754923330199,19.84466315,179.69,179.67,43.8]
[1754923330403,5.56544362,179.69,179.67,43.8]
[1754923330690,145.56481809,179.71,179.67,43.8]
[1754923330894,140.0,179.71,179.69,14.27921953]
[1754923331090,140.0,179.71,179.7,14.95921953]
[1754923331295,5.56324605,179.76,179.7,58.69921953]
[1754923331592,43.74,179.78,179.73,14.27921953]
[1754923331790,5.56270227,179.77,179.75,14.27921953]
[1754923332032,5.56270227,179.77,179.74,0.68]
[1754923332318,5.56270227,179.77,179.73,43.74]
[1754923332319,5.5620446,179.79,179.73,58.01921953]
[1754923332537,14.27921953,179.78,179.73,43.74]
[1754923332697,14.27921953,179.77,179.73,43.74]
[1754923333012,14.27921953,179.77,179.72,14.27921953]
[1754923333013,14.27921953,179.74,179.69,14.27921953]
[1754923333218,14.27921953,179.71,179.7,43.74]
[1754923333591,14.27921953,179.71,179.65,26.68]
[1754923333791,0.48,179.74,179.66,43.7]
[1754923334008,14.27921953,179.7,179.66,43.7]
[1754923334221,5.56513996,179.69,179.66,44.38]
[1754923334543,140.0,179.68,179.66,44.38]
[1754923334690,154.27921953,179.68,179.66,0.68]
[1754923335530,140.0,179.68,179.66,0.68]
[1754923335694,140.0,179.68,179.65,0.06]
[1754923335903,14.27921953,179.66,179.65,0.06]
[1754923336336,19.84528877,179.66,179.65,0.06]
[1754923339314,20.32528877,179.66,179.65,0.06]
[1754923339507,20.32528877,179.66,179.63,0.06]
[1754923339508,35.43150434,179.66,179.63,0.06]
[1754923339710,14.27921953,179.64,179.63,0.06]
[1754923339923,29.3854351,179.64,179.61,0.06]
[1754923340131,14.27921953,179.62,179.61,0.06]
[1754923340332,19.84652829,179.62,179.61,0.06]
[1754923342642,20.32652829,179.62,179.61,0.06]
[1754923342844,19.84652829,179.62,179.61,0.06]
[1754923344626,5.56730876,179.62,179.61,0.06]
[1754923344838,19.84652829,179.62,179.61,0.06]
[1754923348237,14.27921953,179.64,179.61,0.74]
[1754923348430,19.84652829,179.62,179.61,0.06]
[1754923349518,19.84652829,179.62,179.61,28.43]
[1754923349734,14.27921953,179.62,179.61,28.43]
[1754923349930,5.56697546,179.64,179.61,29.12]
[1754923350131,14.27921953,179.63,179.62,0.69]
[1754923350531,19.84621836,179.63,179.61,28.43]
[1754923350738,19.84621836,179.63,179.61,29.12]
[1754923351043,19.8460037,179.64,179.62,0.69]
[1754923351537,13.91320342,179.69,179.63,0.69]
[1754923351717,14.27921953,179.66,179.63,0.69]
[1754923352120,14.27921953,179.67,179.62,14.27921953]
[1754923352351,9.46948292,179.67,179.64,0.69]
[1754923352526,15.03462288,179.69,179.65,0.69]
[1754923353142,15.03462288,179.69,179.62,5.56724813]
[1754923353143,9.46948292,179.66,179.62,0.69]
[1754923353524,9.46948292,179.66,179.63,0.69]
[1754923353716,19.95798986,179.69,179.63,0.69]
[1754923354042,19.47798986,179.69,179.63,0.69]
[1754923354221,9.46948292,179.66,179.63,0.69]
[1754923354645,5.56575944,179.67,179.63,0.69]
[1754923354955,15.03495611,179.68,179.64,0.69]
[1754923355156,9.46948292,179.67,179.65,0.69]
[1754923355337,9.46948292,179.67,179.63,0.69]
[1754923355848,9.46948292,179.65,179.61,69.16]
[1754923356141,5.5651626,179.69,179.61,69.85]
[1754923356142,19.9580125,179.69,179.61,69.85]
[1754923356342,9.46948292,179.66,179.62,0.69]
[1754923356644,19.4780125,179.69,179.63,0.06]
[1754923356944,9.46948292,179.65,179.63,0.06]
[1754923357245,5.5651626,179.69,179.64,9.46948292]
[1754923357543,9.46948292,179.68,179.65,0.69]
[1754923357845,140.0,179.67,179.65,0.69]
[1754923358140,140.0,179.67,179.63,0.75]
[1754923358358,140.0,179.67,179.64,0.69]
[1754923358736,140.0,179.67,179.65,0.69]
[1754923358930,155.03528734,179.67,179.63,0.06]
[1754923359133,9.46948292,179.64,179.63,0.06]
[1754923360356,0.48,179.66,179.63,0.06]
[1754923360536,9.46948292,179.64,179.63,0.06]
[1754923360732,15.03617185,179.64,179.63,0.06]
[1754923362649,28.7140634,179.64,179.61,0.06]
[1754923362852,9.46948292,179.62,179.61,0.06]
[1754923363044,15.10621557,179.61,179.59,0.06]
[1754923363362,158.89554854,179.6,179.59,0.06]
[1754923363534,155.16948292,179.6,179.59,0.06]
[1754923363733,145.7,179.6,179.59,0.06]
[1754923364355,9.46948292,179.61,179.59,0.06]
[1754923364851,15.03735627,179.61,179.59,0.75]
[1754923365247,15.03683873,179.62,179.59,0.75]
[1754923365442,5.56735581,179.62,179.59,0.75]
[1754923365650,140.0,179.61,179.59,0.75]
[1754923365864,5.56672427,179.64,179.59,0.75]
[1754923366069,15.03620719,179.64,179.59,10.21948292]
[1754923366246,15.03620719,179.64,179.59,0.75]
[1754923366449,5.56672427,179.64,179.6,0.69]
[1754923366772,9.46948292,179.63,179.59,0.06]
[1754923366955,15.03674314,179.63,179.59,0.06]
[1754923367270,15.03674314,179.63,179.59,0.75]
[1754923367578,5.56726022,179.63,179.59,0.75]
[1754923367766,5.56669396,179.64,179.59,0.06]
[1754923368079,160.73581122,179.66,179.61,9.46948292]
[1754923368582,9.46948292,179.63,179.59,0.06]
[1754923368953,9.46948292,179.63,179.6,0.69]
[1754923368954,140.0,179.62,179.6,0.69]
[1754923369361,140.0,179.62,179.59,0.06]
[1754923369747,140.0,179.62,179.59,0.75]
[1754923369949,149.46948292,179.62,179.59,0.06]
[1754923370190,9.46948292,179.61,179.59,0.06]
[1754923370968,140.0,179.62,179.59,0.06]
[1754923371168,9.46948292,179.6,179.59,0.06]
[1754923371868,9.94948292,179.6,179.59,0.06]
[1754923372080,28.78271739,179.6,179.59,0.06]
[1754923375272,28.78271739,179.6,179.57,0.06]
[1754923375273,160.80621557,179.58,179.57,0.06]
[1754923375463,71.38271739,179.58,179.57,0.06]
[1754923375656,62.39323447,179.58,179.57,0.06]
[1754923375854,71.86271739,179.58,179.57,0.06]
[1754923378258,62.39323447,179.58,179.57,0.06]
[1754923378464,61.91323447,179.58,179.57,0.06]
[1754923378663,71.38271739,179.58,179.57,0.06]
[1754923379358,71.86271739,179.58,179.57,0.06]
[1754923380364,13.19650182,179.58,179.57,0.06]
[1754923380674,30.53635691,179.62,179.57,0.06]
[1754923380675,0.03,179.64,179.57,10.20948292]
[1754923380989,2.230089,179.66,179.63,9.46948292]
[1754923381174,0.03,179.68,179.64,10.14948292]
[1754923381378,0.03,179.68,179.64,0.68]
[1754923381577,0.03,179.68,179.62,0.68]
[1754923381762,0.03,179.68,179.63,10.14948292]
[1754923381959,0.03,179.68,179.65,9.46948292]
[1754923382175,9.46948292,179.67,179.64,0.68]
[1754923382355,9.46948292,179.66,179.64,0.68]
[1754923382559,0.03,179.68,179.64,0.68]
[1754923382785,9.46948292,179.67,179.64,0.68]
[1754923382984,9.46948292,179.65,179.6,0.68]
[1754923383173,9.46948292,179.64,179.61,26.0]
[1754923383373,9.46948292,179.65,179.61,26.0]
[1754923383564,9.46948292,179.65,179.62,0.68]
[1754923383761,9.46948292,179.64,179.62,0.68]
[1754923384189,145.56635526,179.66,179.62,0.68]
[1754923384490,9.46948292,179.65,179.63,0.68]
[1754923384699,9.46948292,179.65,179.64,0.68]
[1754923385074,9.46948292,179.65,179.6,35.46948292]
[1754923385390,140.0,179.66,179.61,6.24759829]
[1754923385623,149.46948292,179.66,179.61,10.14948292]
[1754923385772,149.46948292,179.66,179.62,0.68]
[1754923385971,149.46948292,179.66,179.63,0.68]
[1754923386587,155.03557045,179.66,179.63,0.68]
[1754923386880,9.46948292,179.64,179.6,26.68]
[1754923387088,9.46948292,179.65,179.61,0.68]
[1754923387390,5.56668893,179.64,179.61,0.68]
[1754923387785,5.56668893,179.64,179.6,26.0]
[1754923387786,9.46948292,179.63,179.6,26.0]
[1754923387986,9.46948292,179.64,179.61,0.68]
[1754923388195,149.46948292,179.66,179.62,0.68]
[1754923388487,140.0,179.66,179.63,0.68]
[1754923388687,149.46948292,179.66,179.63,0.68]
[1754923389086,149.46948292,179.66,179.61,0.68]
[1754923389288,140.0,179.66,179.62,9.46948292]
[1754923389593,140.0,179.66,179.63,0.68]
[1754923389978,149.46948292,179.66,179.63,0.68]
[1754923390789,155.03557003,179.66,179.63,0.68]
[1754923391095,9.46948292,179.64,179.6,26.0]
[1754923391276,9.46948292,179.62,179.57,9.52948292]
[1754923391477,9.46948292,179.61,179.58,0.68]
[1754923391692,9.46948292,179.6,179.58,26.68]
[1754923391868,146.4,179.65,179.58,26.68]
[1754923391869,9.46948292,179.61,179.58,26.68]
[1754923392293,9.46948292,179.6,179.58,26.0]
[1754923392693,15.0374513,179.6,179.58,26.0]
[1754923393297,9.46948292,179.59,179.57,0.06]
[1754923393488,9.46948292,179.58,179.57,0.06]
[1754923394617,20.6729045,179.64,179.57,10.20948292]
[1754923394892,9.46948292,179.6,179.57,0.74]
[1754923395284,20.6729045,179.64,179.57,0.74]
[1754923395478,9.46948292,179.6,179.57,0.74]
[1754923396487,140.0,179.59,179.57,0.74]
[1754923396685,140.0,179.59,179.58,0.68]
[1754923398195,140.0,179.59,179.57,0.06]
[1754923398377,9.46948292,179.6,179.58,0.68]
[1754923398579,9.46948292,179.59,179.57,0.06]
[1754923398779,9.46948292,179.58,179.57,0.06]
[1754923399797,9.46948292,179.6,179.57,0.74]
[1754923400006,145.7,179.61,179.58,0.68]
[1754923400198,155.16948292,179.61,179.58,0.68]
[1754923400384,145.7,179.61,179.59,0.68]
[1754923400583,39.94486828,179.67,179.6,10.14948292]
[1754923400584,15.03616906,179.65,179.6,10.14948292]
[1754923400784,160.73558182,179.66,179.61,10.14948292]
[1754923401005,3.76546904,179.65,179.61,10.14948292]
[1754923401206,3.76546904,179.65,179.62,0.68]
[1754923401506,143.76546904,179.65,179.62,0.68]
[1754923401711,0.03,179.65,179.64,9.46948292]
[1754923401882,0.03,179.65,179.64,10.14948292]
[1754923402084,0.03,179.65,179.64,0.68]
[1754923402528,0.03,179.65,179.63,9.46948292]
[1754923402889,0.03,179.65,179.63,10.14948292]
[1754923403279,0.03,179.65,179.61,5.56738777]
[1754923403502,0.03,179.65,179.62,0.68]
[1754923403687,0.03,179.65,179.64,9.46948292]
[1754923403899,9.49948292,179.65,179.62,0.68]
[1754923404103,0.03,179.65,179.62,0.68]
[1754923405183,0.03,179.65,179.62,6.24717311]
[1754923405410,9.46948292,179.63,179.57,0.06]
[1754923405600,0.7,179.64,179.61,9.46948292]
[1754923405791,0.03,179.65,179.63,9.46948292]
[1754923405986,9.46948292,179.64,179.6,26.0]
[1754923406191,9.46948292,179.61,179.6,43.0]
[1754923406588,9.46948292,179.62,179.6,43.68]
[1754923406985,5.56701053,179.63,179.6,43.0]
[1754923407220,9.46948292,179.62,179.6,43.0]
[1754923407588,9.46948292,179.61,179.59,42.98]
[1754923407793,9.46948292,179.61,179.59,43.66]
[1754923408000,0.03,179.65,179.6,0.68]
[1754923408201,9.46948292,179.62,179.6,0.68]
[1754923408616,9.46948292,179.61,179.59,42.98]
[1754923409209,145.7,179.63,179.59,43.7]
[1754923409411,9.46948292,179.62,179.6,0.72]
[1754923409719,155.16948292,179.63,179.6,0.72]
[1754923409890,145.7,179.63,179.6,0.72]
[1754923410092,0.03,179.65,179.62,9.46948292]
[1754923410411,0.03,179.65,179.64,35.46948292]
[1754923410996,0.03,179.65,179.64,41.75617185]
[1754923412431,0.03,179.65,179.64,26.72]
[1754923412925,0.03,179.65,179.64,41.75617185]
[1754923413102,0.03,179.65,179.64,42.31284074]
[1754923413296,0.03,179.65,179.64,41.75617185]
[1754923414011,0.03,179.65,179.64,56.86238742]
[1754923414234,0.03,179.65,179.64,66.33187034]
[1754923414512,0.03,179.65,179.64,66.88853923]
[1754923414711,0.03,179.67,179.65,15.10621557]
[1754923414919,0.03,179.67,179.66,73.65837465]
[1754923415224,0.03,179.67,179.66,74.37837465]
[1754923416912,0.03,179.69,179.68,41.10621557]
[1754923417128,0.03,179.69,179.68,51.13224345]
[1754923417304,0.03,179.69,179.68,42.38276053]
[1754923417512,0.03,179.69,179.68,51.85224345]
[1754923418019,0.03,179.69,179.68,57.41769313]
[1754923418325,0.03,179.69,179.68,100.35769313]
[1754923418492,1e-08,179.69,179.68,100.35769313]
[1754923418688,1e-08,179.69,179.68,90.88821021]
[1754923418891,1e-08,179.69,179.68,100.35769313]
[1754923419119,1e-08,179.69,179.68,99.80114817]
[1754923420321,0.03,179.7,179.68,99.80114817]
[1754923420630,0.03,179.7,179.69,10.74599691]
[1754923421414,0.03,179.7,179.69,16.31113687]
[1754923421721,0.03,179.77,179.7,15.10621557]
[1754923422020,9.49948292,179.77,179.7,9.46948292]
[1754923422319,0.72,179.75,179.7,53.10948292]
[1754923422520,0.03,179.75,179.7,53.10948292]
[1754923422992,0.03,179.75,179.7,58.67431319]
[1754923423414,0.03,179.75,179.7,57.95431319]
[1754923424799,0.72,179.75,179.7,57.95431319]
[1754923425393,0.72,179.75,179.7,58.67431319]
[1754923426209,0.72,179.75,179.7,57.95431319]
[1754923426833,15.0629433,179.75,179.7,68.92]
[1754923427001,0.72,179.71,179.68,9.46948292]
[1754923427200,0.72,179.71,179.69,42.88]
[1754923427619,0.72,179.71,179.69,68.88]
[1754923428114,0.72,179.71,179.64,0.06]
[1754923428115,10.15948292,179.7,179.64,0.06]
[1754923428315,10.15948292,179.69,179.65,42.88]
[1754923428520,0.69,179.68,179.66,42.88]
[1754923428697,0.69,179.67,179.66,42.88]
[1754923428903,10.15948292,179.67,179.66,42.88]
[1754923429206,0.69,179.67,179.66,42.88]
[1754923429660,5.56493064,179.7,179.66,42.88]
[1754923429808,0.03,179.71,179.66,42.88]
[1754923430015,10.15948292,179.7,179.66,52.34948292]
[1754923430604,0.03,179.71,179.68,9.46948292]
[1754923430934,0.03,179.71,179.69,52.34948292]
[1754923431428,0.03,179.71,179.69,42.88]
[1754923432006,0.03,179.71,179.69,52.34948292]
[1754923432734,0.03,179.71,179.7,9.46948292]
[1754923433100,0.03,179.71,179.69,52.34948292]
[1754923433899,0.03,179.71,179.69,42.88]
[1754923434105,0.03,179.71,179.69,52.34948292]
[1754923435199,0.03,179.71,179.7,9.46948292]
[1754923435403,0.69,179.7,179.69,42.88]
[1754923435703,0.69,179.7,179.69,42.84]
[1754923436217,10.15948292,179.7,179.69,42.84]
[1754923436420,10.15948292,179.7,179.64,0.06]
[1754923436622,9.46948292,179.67,179.65,42.84]
[1754923437125,15.03544194,179.67,179.65,42.9]
[1754923437324,15.7249955,179.68,179.65,42.9]
[1754923438503,9.46948292,179.66,179.65,0.06]
[1754923438902,10.13948292,179.66,179.65,0.06]
[1754923439816,9.46948292,179.67,179.65,0.06]
[1754923440412,15.03555216,179.66,179.65,0.06]
[1754923441103,5.56586097,179.67,179.65,0.06]
[1754923441417,9.46948292,179.66,179.65,0.06]
[1754923441605,25.24569849,179.66,179.65,0.06]
[1754923442026,155.83948292,179.66,179.65,0.06]
[1754923442427,176.51176773,179.66,179.65,0.06]
[1754923444126,161.40555216,179.66,179.65,0.06]
[1754923444507,145.7,179.66,179.65,0.06]
[1754923445711,176.51176773,179.66,179.65,0.06]
[1754923446030,223.03780411,179.66,179.65,0.06]
[1754923446342,213.56832119,179.66,179.65,0.06]
[1754923446548,15.10621557,179.65,179.64,0.06]
[1754923446841,15.10621557,179.65,179.64,1e-08]
[1754923446842,28.97173487,179.65,179.64,1e-08]
[1754923447012,19.50225195,179.65,179.64,1e-08]
[1754923447212,28.97173487,179.65,179.64,1e-08]
[1754923447809,3.72603638,179.65,179.64,1e-08]
[1754923448011,151.26606924,179.66,179.64,1e-08]
[1754923448624,145.7,179.66,179.64,1e-08]
[1754923449032,145.7,179.66,179.64,10.13948293]
[1754923449235,9.46948292,179.69,179.64,10.13948293]
[1754923449236,5.56524076,179.69,179.65,10.13948292]
[1754923449415,15.70472368,179.69,179.64,9.46948293]
[1754923449613,15.03472368,179.69,179.64,9.46948293]
[1754923449838,15.03472368,179.69,179.65,0.67]
[1754923450435,5.56524076,179.69,179.65,9.46948292]
[1754923450609,5.56524076,179.69,179.66,0.67]
[1754923450814,15.03439371,179.7,179.66,0.67]
[1754923451215,140.0,179.69,179.66,0.67]
[1754923451435,149.46948292,179.69,179.64,9.46948293]
[1754923451642,140.0,179.69,179.65,9.46948292]
[1754923451941,149.46948292,179.69,179.65,0.67]
[1754923452245,140.0,179.69,179.66,0.67]
[1754923452750,5.59455129,179.71,179.67,10.13948292]
[1754923453417,0.03,179.71,179.67,10.13948292]
[1754923453640,5.59461682,179.71,179.67,10.13948292]
[1754923453951,0.03,179.71,179.67,10.13948292]
[1754923454150,0.03,179.71,179.69,9.46948292]
[1754923454453,0.03,179.71,179.68,10.13948292]
[1754923454611,15.73401573,179.71,179.66,52.91948292]
[1754923454940,9.46948292,179.68,179.66,42.78]
[1754923455116,9.46948292,179.69,179.66,42.78]
[1754923455820,140.0,179.68,179.66,42.78]
[1754923456718,146.23552411,179.68,179.66,42.78]
[1754923456915,145.56552411,179.68,179.66,42.78]
[1754923457418,140.0,179.68,179.66,42.78]
[1754923458145,140.0,179.68,179.66,43.45]
[1754923458526,140.0,179.68,179.66,42.78]
[1754923458738,146.23545802,179.68,179.66,42.78]
[1754923459118,140.0,179.68,179.66,42.78]
[1754923461854,146.23565586,179.68,179.66,42.78]
[1754923462947,155.70513878,179.68,179.66,42.78]
[1754923463254,155.83948292,179.67,179.64,1e-08]
[1754923463415,9.46948292,179.65,179.64,1e-08]
[1754923463837,10.13948292,179.65,179.64,1e-08]
[1754923464047,28.97900074,179.65,179.64,1e-08]
[1754923464850,25.07589689,179.65,179.64,1e-08]
[1754923465140,34.54537981,179.65,179.64,1e-08]
[1754923467167,9.96968132,179.65,179.64,1e-08]
[1754923467344,19.43916424,179.65,179.64,1e-08]
[1754923468350,18.76916424,179.65,179.64,1e-08]
[1754923469141,18.76916424,179.65,179.64,28.41000001]
[1754923469637,9.29968132,179.65,179.64,28.41000001]
[1754923469838,3.73330225,179.65,179.64,29.08000001]
[1754923470022,5.56615407,179.66,179.64,29.08000001]
[1754923470338,9.30052481,179.66,179.64,29.08000001]
[1754923470534,9.30052481,179.66,179.64,28.41000001]
[1754923470747,15.03563699,179.66,179.64,28.41000001]
[1754923471050,15.03563699,179.66,179.64,1e-08]
[1754923471649,140.0,179.65,179.64,1e-08]
[1754923472747,149.46948292,179.65,179.64,1e-08]
[1754923473048,158.77321398,179.65,179.64,1e-08]
[1754923473250,5.56637907,179.65,179.64,0.67000001]
[1754923473550,15.03586199,179.65,179.64,1e-08]
[1754923473851,18.77317105,179.65,179.64,1e-08]
[1754923474253,19.43317105,179.65,179.64,1e-08]
[1754923474631,18.77317105,179.65,179.64,1e-08]
[1754923475155,9.30368813,179.65,179.64,1e-08]
[1754923475353,18.77317105,179.65,179.64,1e-08]
[1754923476036,5.56637907,179.65,179.64,1e-08]
[1754923476238,5.56611199,179.66,179.64,0.67000001]
[1754923476439,9.46948292,179.65,179.64,1e-08]
[1754923476753,13.20747363,179.65,179.64,1e-08]
[1754923476929,3.73799071,179.65,179.64,0.67000001]
[1754923477128,9.46948292,179.65,179.64,1e-08]
[1754923477325,15.03586199,179.65,179.64,1e-08]
[1754923477757,19.43436029,179.65,179.64,1e-08]
[1754923478169,18.77436029,179.65,179.64,1e-08]
[1754923478752,9.30487737,179.65,179.64,1e-08]
[1754923478953,18.77436029,179.65,179.64,1e-08]
[1754923480454,19.43436029,179.65,179.64,1e-08]
[1754923482748,34.54057586,179.65,179.64,1e-08]
[1754923485863,15.10621557,179.64,179.63,1e-08]
[1754923486041,84.92003662,179.64,179.63,1e-08]
[1754923486361,65.98107078,179.64,179.61,0.06]
[1754923486560,9.46948292,179.62,179.61,0.06]
[1754923486736,55.80798122,179.62,179.61,0.73]
[1754923486941,56.46798122,179.62,179.61,1e-08]
[1754923487251,77.14150555,179.62,179.57,0.06]
[1754923487442,15.10621557,179.59,179.58,1e-08]
[1754923487644,28.31419679,179.59,179.54,0.06]
[1754923487848,24.57569849,179.56,179.54,0.06]
[1754923488159,28.31419679,179.56,179.54,0.06]
[1754923488750,33.88336586,179.56,179.54,0.06]
[1754923489136,18.77715029,179.56,179.55,0.73]
[1754923489541,34.54336586,179.56,179.55,0.06]
[1754923489752,77.14336586,179.56,179.55,0.06]
[1754923491346,67.67388294,179.56,179.55,0.06]
[1754923491549,77.14336586,179.56,179.55,0.06]
[1754923492865,0.66,179.56,179.55,0.06]
[1754923493160,15.69865199,179.56,179.55,0.06]
[1754923493663,15.03865199,179.56,179.55,0.06]
[1754923494680,9.46948292,179.56,179.55,0.06]
[1754923494986,15.03865199,179.56,179.55,0.06]
[1754923495142,5.56916907,179.56,179.55,0.06]
[1754923495465,15.03865199,179.56,179.55,0.06]
[1754923495764,15.66865199,179.56,179.55,0.06]
[1754923496348,9.46948292,179.56,179.55,0.06]
[1754923496758,10.09948292,179.56,179.55,0.06]
[1754923497144,25.20569849,179.56,179.55,0.06]
[1754923497569,71.48731061,179.56,179.55,0.06]
[1754923498046,24.57569849,179.55,179.54,1e-08]
[1754923498246,34.49678986,179.55,179.54,1e-08]
[1754923498567,34.49678986,179.55,179.47,0.67]
[1754923498568,90.28153461,179.55,179.45,0.68]
[1754923498742,90.28153461,179.55,179.38,31.83841657]
[1754923498743,9.46948292,179.46,179.43,0.68]
[1754923499153,9.46948292,179.46,179.44,0.68]
[1754923499748,9.46948292,179.45,179.42,0.68]
[1754923499946,9.46948292,179.45,179.43,0.68]
[1754923500151,42.54,179.51,179.44,0.68]
[1754923500391,5.57134102,179.49,179.44,0.68]
[1754923500671,5.57040998,179.52,179.47,9.46948292]
[1754923500840,145.57040998,179.52,179.48,0.68]
[1754923501047,9.46948292,179.5,179.46,0.68]
[1754923501356,9.46948292,179.47,179.43,0.68]
[1754923501553,9.46948292,179.46,179.43,0.68]
[1754923501752,0.71,179.49,179.43,0.68]
[1754923501966,9.46948292,179.47,179.43,0.68]
[1754923502161,9.46948292,179.47,179.44,0.68]
[1754923502459,9.46948292,179.46,179.42,5.57346101]
[1754923502655,9.46948292,179.46,179.43,0.68]
[1754923503373,6.28171256,179.48,179.41,0.68]
[1754923503577,6.28171256,179.48,179.41,10.14948292]
[1754923503776,9.46948292,179.47,179.42,0.68]
[1754923504254,9.46948292,179.47,179.42,10.14948292]
[1754923504449,145.7,179.5,179.44,9.46948292]
[1754923504644,145.7,179.5,179.46,9.46948292]
[1754923504848,145.7,179.5,179.47,10.14948292]
[1754923505058,145.7,179.5,179.48,0.68]
[1754923505255,145.7,179.5,179.43,26.0]
[1754923505256,9.46948292,179.49,179.43,9.46948292]
[1754923505454,9.46948292,179.48,179.43,52.66948292]
[1754923505658,10.17948292,179.49,179.44,10.14948292]
[1754923505858,9.46948292,179.49,179.45,0.68]
[1754923506276,9.46948292,179.48,179.45,0.68]
[1754923506478,5.57196188,179.47,179.43,9.46948292]
[1754923506774,5.57196188,179.47,179.44,0.68]
[1754923507157,5.57196188,179.47,179.45,0.68]
[1754923508070,5.57173448,179.48,179.45,0.68]
[1754923508280,145.7,179.5,179.46,0.68]
[1754923508452,145.7,179.5,179.46,12.18288477]
[1754923508654,5.93071716,179.49,179.45,26.0]
[1754923508878,5.93071716,179.49,179.45,26.68]
[1754923509054,5.93071716,179.49,179.45,32.61071716]
[1754923509261,5.93071716,179.47,179.45,26.0]
[1754923509469,6.64071716,179.47,179.45,26.0]
[1754923509662,5.93071716,179.47,179.45,26.0]
[1754923509951,145.7,179.5,179.46,0.68]
[1754923510278,145.7,179.5,179.47,0.68]
[1754923510456,145.7,179.49,179.47,0.68]
[1754923510656,145.7,179.49,179.45,31.93071716]
[1754923510856,145.7,179.49,179.46,0.68]
[1754923511167,145.7,179.49,179.47,0.68]
[1754923511363,145.7,179.49,179.47,5.93071716]
[1754923511576,145.7,179.49,179.48,0.68]